fUSD/lending_fUSD_20240808
["ID","MTS","AMOUNT","RATE_DAILY","PERIOD"]
[334452623,1723112734911,-300.0,0.00010799,2]
[334452624,1723112734937,-187.36,0.000108,2]
[334452625,1723112734962,-1000.0,0.000108,2]
[334452626,1723112734987,-1000.0,0.000108,2]
[334452627,1723112735013,-1000.0,0.000108,2]
[334452628,1723112735039,-812.64,0.000108,2]
[334452629,1723112755771,750.6416141,6.94e-05,2]
[334452630,1723112778773,-200.0,0.00010164,2]
[334452631,1723112778798,-300.0,0.00010799,2]
[334452632,1723112778823,-187.36,0.000108,2]
[334452633,1723112778847,-299.883481,0.000108,2]
[334452634,1723112778872,-363.87131843,0.000108,2]
[334452635,1723112778897,-1050.33292789,0.000108,2]
[334452636,1723112778922,-199.9318595,0.000108,2]
[334452637,1723112778946,-155.0,0.000108,2]
[334452638,1723112778970,-449.41821093,0.000108,2]
[334452639,1723112778996,-170.42026434,0.000108,2]
[334452640,1723112779022,-181.77327413,0.000108,2]
[334452641,1723112779049,-7575.83905844,0.000108,2]
[334452642,1723112779074,-413.01214719,0.000108,2]
[334452643,1723112779098,-155.14187369,0.000108,2]
[334452644,1723112779124,-3323.01558446,0.000108,2]
[334452645,1723112796871,155.0,6.94e-05,2]
[334452646,1723112799606,227.69229236,6.94e-05,2]
[334452647,1723112805239,871.90912739,6.94e-05,2]
[334452648,1723112805351,2288.79990132,6.94e-05,2]
[334452649,1723112806367,411.77126186,6.94e-05,2]
[334452650,1723112806659,1268.38387018,8.412e-05,2]
[334452651,1723112813420,425.73118234,6.94e-05,2]
[334452652,1723112819705,485.439575,6.94e-05,2]
[334452653,1723112820318,155.0,6.94e-05,2]
[334452654,1723112824258,155.0,6.94e-05,2]
[334452655,1723112824395,692.92070415,6.94e-05,2]
[334452656,1723112825766,530.90490077,8.412e-05,2]
[334452657,1723112836253,291.48744605,6.94e-05,2]
[334452658,1723112857012,43737.26441554,8.412e-05,2]
[334452659,1723112857106,227.69229236,8.412e-05,2]
[334452660,1723112861195,4242.45897634,8.412e-05,2]
[334452661,1723112866755,530.90490077,8.412e-05,2]
[334452662,1723112874145,510.0,0.00015068,120]
[334452663,1723112874571,510.0,0.00015342,120]
[334452664,1723112874722,510.0,0.00015616,120]
[334452665,1723112875232,561.84747839,0.0001589,120]
[334452666,1723112916641,308.33706045,0.00025,90]
[334452667,1723112944338,1000.0,0.00027,120]
[334452671,1723113031620,-181.72686147,0.0001,2]
[334452672,1723113031630,-449.41821093,0.0001,2]
[334452673,1723113031639,-1050.00503643,0.0001,2]
[334452674,1723113031649,-299.78978016,0.0001,2]
[334452675,1723113031660,-214.27,0.00010142,2]
[334452676,1723113031672,-250.0,0.00010153,2]
[334452677,1723113031682,-283.52,0.00010162,2]
[334452678,1723113031692,-155.18742705,0.00010196,2]
[334452679,1723113031701,-530.90490077,0.00010196,2]
[334452680,1723113031711,-150.0,0.00010824,2]
[334452681,1723113031720,-1327.39404,0.0001089,2]
[334452682,1723113031730,-170.65087134,0.000109,2]
[334452683,1723113031740,-5148.69178874,0.000109,2]
[334452684,1723113031751,-1174.98131028,0.000109,2]
[334452685,1723113031763,-1176.32690098,0.000109,2]
[334452686,1723113031773,-23.67309902,0.000109,2]
[334452687,1723113031785,-710.29320098,0.000109,2]
[334452688,1723113031794,-732.14158423,0.000109,2]
[334452689,1723113031804,-391.51215724,0.000109,2]
[334452690,1723113031814,-4209.10996155,0.000109,2]
[334452692,1723113031826,-4945.1580466,0.000109,2]
[334452698,1723113037891,-288.02774,0.000109,2]
[334452699,1723113037902,-120.77556951,0.000109,2]
[334452700,1723113037912,-315.96395426,0.000109,2]
[334452701,1723113037922,-259.79108391,0.00010905,2]
[334452702,1723113037931,-499.99,0.00010905,2]
[334452703,1723113037951,-500.0,0.00010912,2]
[334452704,1723113037960,-250.0,0.00010959,2]
[334452705,1723113037970,-336.92,0.00010959,2]
[334452706,1723113037980,-280.77,0.00010959,2]
[334452707,1723113037989,-233.97,0.00010959,2]
[334452708,1723113037998,-194.98,0.00010959,2]
[334452709,1723113038008,-162.48,0.00010959,2]
[334452710,1723113038018,-812.43,0.00010959,2]
[334452711,1723113038028,-866.95,0.00010959,2]
[334452712,1723113038038,-230.17849232,0.00010987,2]
[334452713,1723113038058,-2055.49765606,0.00010987,2]
[334452714,1723113038068,-8637.18367496,0.00010997,2]
[334452715,1723113038078,-77036.07590517,0.00011,2]
[334452716,1723113038087,-418546.28036915,0.00011,2]
[334452717,1723113038418,-2926.840159,0.00011,2]
[334452718,1723113038438,-8355.461751,0.00011,2]
[334452719,1723113038452,-35714.637269,0.00011,2]
[334452720,1723113038472,-309.41759121,0.00011,2]
[334452721,1723113038487,-5986.93282907,0.00011,2]
[334452722,1723113042185,-2766315.89603994,0.00011,2]
[334452723,1723113042194,-11065.71931158,0.00011,2]
[334452724,1723113042204,-53208.70132726,0.00011,2]
[334452725,1723113042213,-1795309.82607112,0.00011,2]
[334452726,1723113042223,-500.0,0.00011,2]
[334452727,1723113042236,-500.0,0.00011,2]
[334452728,1723113042246,-500.0,0.00011,2]
[334452729,1723113042255,-500.0,0.00011,2]
[334452730,1723113042265,-500.0,0.00011,2]
[334452731,1723113042275,-500.0,0.00011,2]
[334452732,1723113042285,-500.0,0.00011,2]
[334452733,1723113042294,-500.0,0.00011,2]
[334452734,1723113042304,-652.0,0.00011,2]
[334452735,1723113042316,-151.0,0.00011,2]
[334452736,1723113042327,-151.0,0.00011,2]
[334452737,1723113042336,-151.0,0.00011,2]
[334452738,1723113042346,-151.0,0.00011,2]
[334452739,1723113042355,-151.0,0.00011,2]
[334452740,1723113042365,-151.0,0.00011,2]
[334452741,1723113042375,-151.0,0.00011,2]
[334452742,1723113042384,-151.321915,0.00011,2]
[334452743,1723113042394,-151.0,0.00011,2]
[334452744,1723113042404,-151.0,0.00011,2]
[334452745,1723113042414,-151.210324,0.00011,2]
[334452746,1723113042424,-151.0,0.00011,2]
[334452747,1723113042434,-151.0,0.00011,2]
[334452749,1723113042444,-151.0,0.00011,2]
[334452750,1723113042454,-151.0,0.00011,2]
[334452752,1723113042463,-2123090.28523477,0.00011,2]
[334452754,1723113042474,-151.0,0.00011,2]
[334452756,1723113042483,-269.37745,0.00011,2]
[334452758,1723113042493,-873.593595,0.00011,2]
[334452761,1723113042503,-873.593595,0.00011,2]
[334452764,1723113042512,-151.0,0.00011,2]
[334452767,1723113042523,-1160.590552,0.00011,2]
[334452770,1723113042533,-1160.590552,0.00011,2]
[334452773,1723113042544,-444.959027,0.00011,2]
[334452778,1723113042554,-444.959027,0.00011,2]
[334452784,1723113042564,-151.0,0.00011,2]
[334452786,1723113042573,-151.0,0.00011,2]
[334452788,1723113042583,-151.0,0.00011,2]
[334452790,1723113042592,-151.0,0.00011,2]
[334452792,1723113042602,-241.6,0.00011,2]
[334452794,1723113042611,-151.0,0.00011,2]
[334452796,1723113042621,-151.0,0.00011,2]
[334452798,1723113042630,-151.0,0.00011,2]
[334452800,1723113042640,-151.0,0.00011,2]
[334452801,1723113042649,-151.0,0.00011,2]
[334452803,1723113042658,-151.0,0.00011,2]
[334452805,1723113042667,-151.0,0.00011,2]
[334452807,1723113042678,-151.0,0.00011,2]
[334452809,1723113042688,-151.0,0.00011,2]
[334452811,1723113042699,-417.333619,0.00011,2]
[334452814,1723113042708,-417.333619,0.00011,2]
[334452816,1723113042718,-151.0,0.00011,2]
[334452818,1723113042728,-151.0,0.00011,2]
[334452820,1723113042738,-159.8408,0.00011,2]
[334452822,1723113042747,-5260.001754,0.00011,2]
[334452824,1723113042757,-5260.001754,0.00011,2]
[334452825,1723113042766,-386.79,0.00011,2]
[334452827,1723113042776,-171.394083,0.00011,2]
[334452830,1723113042787,-151.0,0.00011,2]
[334452832,1723113042798,-16057.6313194,0.00011026,2]
[334452834,1723113042808,-3460.4128397,0.00011026,2]
[334452836,1723113042817,-12407.0721291,0.00011026,2]
[334452838,1723113042827,-17788.57987618,0.00011105,2]
[334452840,1723113042838,-155.08084707,0.00011105,2]
[334452842,1723113042848,-155.0,0.00011105,2]
[334452844,1723113042858,-198.48903317,0.00011105,2]
[334452846,1723113042867,-155.03735797,0.00011105,2]
[334452848,1723113042877,-175.47938382,0.00011105,2]
[334452850,1723113042887,-155.0,0.00011105,2]
[334452852,1723113042897,-922.18738937,0.00011105,2]
[334452854,1723113042907,-155.03289072,0.00011105,2]
[334452856,1723113042916,-155.0,0.00011105,2]
[334452858,1723113042929,-192.18974794,0.00011105,2]
[334452860,1723113042939,-221.31341994,0.00011105,2]
[334452862,1723113042949,-265.34834618,0.00011105,2]
[334452864,1723113042958,-594.86612092,0.00011105,2]
[334452866,1723113042968,-155.0,0.00011105,2]
[334452868,1723113042978,-347.57284792,0.00011105,2]
[334452870,1723113042987,-310.0,0.00011105,2]
[334452872,1723113042997,-9900.60324222,0.00011105,2]
[334452889,1723113043177,-10530.82016091,0.00011105,2]
[334452891,1723113043187,-7000.0,0.00011105,2]
[334452893,1723113043197,-206.70151883,0.00011105,2]
[334452895,1723113043206,-3978.40681593,0.00011105,2]
[334452897,1723113043216,-201.71555854,0.00011105,2]
[334452899,1723113043229,-203.39055091,0.00011105,2]
[334452901,1723113043238,-5401.96629053,0.00011105,2]
[334452903,1723113043248,-3081.18235312,0.00011105,2]
[334452904,1723113043257,-3031.36676467,0.00011105,2]
[334452906,1723113043267,-166.44870955,0.00011105,2]
[334452908,1723113043279,-3403.27150347,0.00011105,2]
[334452910,1723113043289,-2840.18586183,0.00011105,2]
[334452912,1723113043299,-155.0,0.00011105,2]
[334452914,1723113043311,-202.73305169,0.00011105,2]
[334452916,1723113043322,-3119.99072225,0.00011105,2]
[334452918,1723113043332,-240.82333061,0.00011105,2]
[334452920,1723113043342,-155.0,0.00011105,2]
[334452922,1723113043352,-155.0,0.00011105,2]
[334452924,1723113043362,-2341.05923349,0.00011105,2]
[334452926,1723113043372,-2145.1967965,0.00011105,2]
[334452928,1723113043382,-2210.17921274,0.00011105,2]
[334452930,1723113043391,-2835.14286804,0.00011105,2]
[334452932,1723113043402,-294.91245979,0.00011105,2]
[334452934,1723113043412,-155.08518298,0.00011105,2]
[334452936,1723113043421,-191.48055914,0.00011105,2]
[334452938,1723113043435,-155.0,0.00011105,2]
[334452940,1723113043445,-1690.04583793,0.00011105,2]
[334452942,1723113043454,-1725.0,0.00011105,2]
[334452944,1723113043465,-1138.74733846,0.00011105,2]
[334452946,1723113043475,-151.39814,0.00011105,2]
[334452948,1723113043484,-151.0,0.00011105,2]
[334452950,1723113043494,-151.0,0.00011105,2]
[334452952,1723113043503,-155.0,0.00011105,2]
[334452954,1723113043514,-1275.20903886,0.00011105,2]
[334452956,1723113043524,-1184.61576788,0.00011105,2]
[334452958,1723113043534,-236.89983935,0.00011105,2]
[334452960,1723113043543,-151.0,0.00011105,2]
[334452962,1723113043553,-151.0,0.00011105,2]
[334452964,1723113043562,-151.0,0.00011105,2]
[334452966,1723113043572,-151.0,0.00011105,2]
[334452968,1723113043582,-151.0,0.00011105,2]
[334452970,1723113043592,-151.0,0.00011105,2]
[334452972,1723113043601,-151.0,0.00011105,2]
[334452974,1723113043611,-2275.99198575,0.00011105,2]
[334452976,1723113043621,-155.0,0.00011105,2]
[334452978,1723113043631,-151.0,0.00011105,2]
[334452980,1723113043642,-151.0,0.00011105,2]
[334452982,1723113043652,-151.0,0.00011105,2]
[334452984,1723113043661,-201.640004,0.00011105,2]
[334452986,1723113043671,-151.0,0.00011105,2]
[334452988,1723113043683,-151.0,0.00011105,2]
[334452990,1723113043692,-719.74494366,0.00011105,2]
[334452992,1723113043702,-1738.98059471,0.00011105,2]
[334452994,1723113043711,-2385.06010554,0.00011105,2]
[334452996,1723113043721,-1074.32909771,0.00011105,2]
[334452998,1723113043731,-151.0,0.00011105,2]
[334453000,1723113043741,-151.0,0.00011105,2]
[334453002,1723113043751,-151.0,0.00011105,2]
[334453005,1723113043765,-151.0,0.00011105,2]
[334453007,1723113043775,-167.59519,0.00011105,2]
[334453009,1723113043785,-151.0,0.00011105,2]
[334453011,1723113043795,-1500.0,0.00011105,2]
[334453013,1723113043805,-151.0,0.00011105,2]
[334453015,1723113043815,-151.0,0.00011105,2]
[334453017,1723113043824,-264.047243,0.00011105,2]
[334453018,1723113043834,-203.34953155,0.00011105,2]
[334453020,1723113043844,-649.64235225,0.00011105,2]
[334453022,1723113043854,-194.9143334,0.00011105,2]
[334453024,1723113043865,-160.3635467,0.00011105,2]
[334453026,1723113043874,-155.0,0.00011105,2]
[334453028,1723113043885,-962.16798136,0.00011105,2]
[334453030,1723113043897,-200.7797018,0.00011105,2]
[334453032,1723113043907,-155.06366873,0.00011105,2]
[334453034,1723113043917,-1176.55374335,0.00011105,2]
[334453036,1723113043931,-653.43529008,0.00011105,2]
[334453038,1723113043940,-723.15324613,0.00011105,2]
[334453040,1723113043950,-200.55692382,0.00011105,2]
[334453042,1723113043960,-628.42011992,0.00011105,2]
[334453044,1723113043970,-158.90125978,0.00011105,2]
[334453046,1723113043979,-270.49018552,0.00011105,2]
[334453048,1723113043988,-380.20794709,0.00011105,2]
[334453050,1723113043998,-224.53255426,0.00011105,2]
[334453052,1723113044008,-151.0,0.00011105,2]
[334453054,1723113044017,-1050.3006757,0.00011105,2]
[334453056,1723113044027,-600.54620621,0.00011105,2]
[334453057,1723113044036,-236.26495899,0.00011105,2]
[334453059,1723113044046,-439.93201314,0.00011105,2]
[334453060,1723113044056,-357.33247502,0.00011105,2]
[334453061,1723113044066,-151.0,0.00011105,2]
[334453062,1723113044076,-298.55020532,0.00011105,2]
[334453063,1723113044086,-170.932081,0.00011105,2]
[334453064,1723113044096,-170.932081,0.00011105,2]
[334453065,1723113044106,-151.0,0.00011105,2]
[334453066,1723113044115,-164.32700065,0.00011105,2]
[334453067,1723113044125,-189.444249,0.00011105,2]
[334453068,1723113044135,-218.69396992,0.00011105,2]
[334453069,1723113044144,-189.444249,0.00011105,2]
[334453070,1723113044154,-485.03024072,0.00011105,2]
[334453071,1723113044164,-519.95096607,0.00011105,2]
[334453072,1723113044176,-206.57217609,0.00011105,2]
[334453073,1723113044186,-458.13805,0.00011105,2]
[334453074,1723113044195,-458.13805,0.00011105,2]
[334453075,1723113044204,-274.74497196,0.00011105,2]
[334453076,1723113044214,-155.0,0.00011105,2]
[334453077,1723113044224,-151.0,0.00011105,2]
[334453078,1723113044235,-577.005933,0.00011105,2]
[334453079,1723113044245,-155.0,0.00011105,2]
[334453080,1723113044255,-163.77282534,0.00011105,2]
[334453081,1723113044264,-577.005933,0.00011105,2]
[334453082,1723113044275,-155.0,0.00011105,2]
[334453083,1723113044284,-151.0,0.00011105,2]
[334453084,1723113044294,-476.78974211,0.00011105,2]
[334453085,1723113044303,-170.17583081,0.00011105,2]
[334453086,1723113044316,-157.349216,0.00011105,2]
[334453087,1723113044326,-157.349216,0.00011105,2]
[334453088,1723113044335,-151.0,0.00011105,2]
[334453089,1723113044345,-151.0,0.00011105,2]
[334453090,1723113044355,-151.0,0.00011105,2]
[334453091,1723113044364,-368.671908,0.00011105,2]
[334453092,1723113044373,-151.0,0.00011105,2]
[334453093,1723113044383,-368.671908,0.00011105,2]
[334453094,1723113044393,-304.121302,0.00011105,2]
[334453095,1723113044403,-304.121302,0.00011105,2]
[334453096,1723113044412,-873.593595,0.00011105,2]
[334453097,1723113044421,-873.593595,0.00011105,2]
[334453098,1723113044432,-278.573736,0.00011105,2]
[334453099,1723113044442,-155.03378236,0.00011105,2]
[334453100,1723113044451,-151.0,0.00011105,2]
[334453101,1723113044461,-182.595978,0.00011105,2]
[334453102,1723113044471,-151.0,0.00011105,2]
[334453103,1723113044480,-182.595978,0.00011105,2]
[334453104,1723113044490,-151.0,0.00011105,2]
[334453105,1723113044499,-1160.590552,0.00011105,2]
[334453106,1723113044508,-1160.590552,0.00011105,2]
[334453107,1723113044518,-155.0,0.00011105,2]
[334453108,1723113044527,-444.959027,0.00011105,2]
[334453109,1723113044537,-444.959027,0.00011105,2]
[334453110,1723113044546,-151.0,0.00011105,2]
[334453111,1723113044555,-151.0,0.00011105,2]
[334453112,1723113044565,-365.64094025,0.00011105,2]
[334453113,1723113044574,-151.0,0.00011105,2]
[334453114,1723113044583,-151.0,0.00011105,2]
[334453115,1723113044592,-158.204595,0.00011105,2]
[334453116,1723113044602,-151.584461,0.00011105,2]
[334453117,1723113044612,-151.0,0.00011105,2]
[334453118,1723113044621,-155.67856311,0.00011105,2]
[334453119,1723113044631,-151.0,0.00011105,2]
[334453120,1723113044640,-151.0,0.00011105,2]
[334453121,1723113044649,-276.84688,0.00011105,2]
[334453122,1723113044659,-159.37462377,0.00011105,2]
[334453123,1723113044668,-151.0,0.00011105,2]
[334453124,1723113044679,-151.0,0.00011105,2]
[334453125,1723113044689,-151.0,0.00011105,2]
[334453126,1723113044699,-155.97880612,0.00011105,2]
[334453127,1723113044708,-151.0,0.00011105,2]
[334453128,1723113044718,-417.333619,0.00011105,2]
[334453129,1723113044727,-417.333619,0.00011105,2]
[334453130,1723113044737,-165.45300065,0.00011105,2]
[334453131,1723113044747,-155.0,0.00011105,2]
[334453132,1723113044756,-151.0,0.00011105,2]
[334453133,1723113044766,-151.0,0.00011105,2]
[334453134,1723113044775,-160.47891695,0.00011105,2]
[334453135,1723113044784,-400.0,0.00011105,2]
[334453136,1723113044795,-5260.001754,0.00011105,2]
[334453137,1723113044805,-5260.001754,0.00011105,2]
[334453138,1723113044814,-313.62147396,0.00011105,2]
[334453139,1723113044824,-171.394083,0.00011105,2]
[334453140,1723113044834,-151.0,0.00011105,2]
[334453141,1723113044847,-155.0,0.00011161,2]
[334453142,1723113044856,-207.73368938,0.00011161,2]
[334453143,1723113044866,-330.08626418,0.00011161,2]
[334453144,1723113044876,-263.13,0.00011177,2]
[334453145,1723113044886,-263.13,0.0001118,2]
[334453146,1723113044895,-263.13,0.00011183,2]
[334453147,1723113044905,-263.13,0.00011186,2]
[334453148,1723113044914,-25310.66391755,0.00011186,2]
[334453149,1723113044923,-22646.83149119,0.00011186,2]
[334453150,1723113044940,-200.09062092,0.00011186,2]
[334453151,1723113044950,-493.44267855,0.00011186,2]
[334453152,1723113044959,-197.06953183,0.00011186,2]
[334453153,1723113044969,-206.37373985,0.00011186,2]
[334453154,1723113044979,-151.0,0.00011186,2]
[334453155,1723113044988,-151.0,0.00011186,2]
[334453156,1723113044998,-151.0,0.00011186,2]
[334453157,1723113045007,-151.0,0.00011186,2]
[334453158,1723113045017,-151.0,0.00011186,2]
[334453159,1723113045027,-151.0,0.00011186,2]
[334453160,1723113045036,-151.0,0.00011186,2]
[334453161,1723113045045,-151.0,0.00011186,2]
[334453162,1723113045055,-151.0,0.00011186,2]
[334453163,1723113045064,-151.0,0.00011186,2]
[334453164,1723113045073,-151.0,0.00011186,2]
[334453165,1723113045083,-286.1665,0.00011186,2]
[334453166,1723113045094,-286.1665,0.00011186,2]
[334453167,1723113045104,-151.0,0.00011186,2]
[334453168,1723113045113,-151.0,0.00011186,2]
[334453169,1723113045122,-151.0,0.00011186,2]
[334453170,1723113045132,-151.0,0.00011186,2]
[334453171,1723113045141,-151.0,0.00011186,2]
[334453172,1723113045153,-151.0,0.00011186,2]
[334453173,1723113045162,-291.688921,0.00011186,2]
[334453174,1723113045172,-191.688466,0.00011186,2]
[334453175,1723113045183,-191.688466,0.00011186,2]
[334453176,1723113045192,-274.160286,0.00011186,2]
[334453177,1723113045202,-1202.029498,0.00011186,2]
[334453178,1723113045211,-1202.029498,0.00011186,2]
[334453179,1723113045220,-151.0,0.00011186,2]
[334453180,1723113045235,-151.0,0.00011186,2]
[334453181,1723113045245,-151.0,0.00011186,2]
[334453182,1723113045255,-151.0,0.00011186,2]
[334453183,1723113045264,-197.27853,0.00011186,2]
[334453184,1723113045275,-197.27853,0.00011186,2]
[334453185,1723113045284,-151.0,0.00011186,2]
[334453186,1723113045294,-151.0,0.00011186,2]
[334453187,1723113045303,-151.0,0.00011186,2]
[334453188,1723113045313,-539.840086,0.00011186,2]
[334453189,1723113045323,-539.840086,0.00011186,2]
[334453190,1723113045332,-151.0,0.00011186,2]
[334453191,1723113045342,-200.526732,0.00011186,2]
[334453192,1723113045351,-200.526732,0.00011186,2]
[334453193,1723113045361,-151.0,0.00011186,2]
[334453194,1723113045370,-187.637964,0.00011186,2]
[334453195,1723113045379,-187.637964,0.00011186,2]
[334453196,1723113045389,-181.16028,0.00011186,2]
[334453197,1723113045398,-151.0,0.00011186,2]
[334453198,1723113045407,-181.16028,0.00011186,2]
[334453199,1723113045416,-151.0,0.00011186,2]
[334453200,1723113045426,-151.0,0.00011186,2]
[334453201,1723113045435,-151.0,0.00011186,2]
[334453202,1723113045445,-151.0,0.00011186,2]
[334453203,1723113045454,-167.474562,0.00011186,2]
[334453204,1723113045463,-167.474562,0.00011186,2]
[334453205,1723113045472,-151.0,0.00011186,2]
[334453206,1723113045482,-151.0,0.00011186,2]
[334453208,1723113045491,-168.980269,0.00011186,2]
[334453210,1723113045501,-151.0,0.00011186,2]
[334453212,1723113045510,-151.0,0.00011186,2]
[334453214,1723113045519,-151.0,0.00011186,2]
[334453216,1723113045529,-151.0,0.00011186,2]
[334453218,1723113045539,-151.0,0.00011186,2]
[334453220,1723113045549,-208.620823,0.00011186,2]
[334453222,1723113045559,-699.611384,0.00011186,2]
[334453223,1723113045568,-699.611384,0.00011186,2]
[334453225,1723113045578,-151.0,0.00011186,2]
[334453227,1723113045587,-151.0,0.00011186,2]
[334453229,1723113045597,-151.0,0.00011186,2]
[334453234,1723113045642,-151.0,0.00011186,2]
[334453236,1723113045652,-151.0,0.00011186,2]
[334453238,1723113045661,-151.0,0.00011186,2]
[334453240,1723113045671,-253.072338,0.00011186,2]
[334453241,1723113045683,-553.127259,0.00011186,2]
[334453242,1723113045692,-553.127259,0.00011186,2]
[334453244,1723113045703,-151.0,0.00011186,2]
[334453246,1723113045712,-151.0,0.00011186,2]
[334453248,1723113045722,-834.453917,0.00011186,2]
[334453250,1723113045731,-834.453917,0.00011186,2]
[334453252,1723113045741,-151.0,0.00011186,2]
[334453254,1723113045751,-151.0,0.00011186,2]
[334453256,1723113045761,-151.0,0.00011186,2]
[334453258,1723113045770,-151.0,0.00011186,2]
[334453259,1723113045780,-151.0,0.00011186,2]
[334453260,1723113045789,-274.503157,0.00011186,2]
[334453261,1723113045799,-274.503157,0.00011186,2]
[334453262,1723113045808,-151.0,0.00011186,2]
[334453263,1723113045818,-151.0,0.00011186,2]
[334453264,1723113045827,-1238.80122,0.00011186,2]
[334453265,1723113045836,-170.932081,0.00011186,2]
[334453266,1723113045846,-1238.80122,0.00011186,2]
[334453267,1723113045855,-170.932081,0.00011186,2]
[334453268,1723113045864,-189.444249,0.00011186,2]
[334453269,1723113045874,-189.444249,0.00011186,2]
[334453270,1723113045884,-151.0,0.00011186,2]
[334453271,1723113045893,-458.13805,0.00011186,2]
[334453272,1723113045903,-458.13805,0.00011186,2]
[334453273,1723113045912,-151.0,0.00011186,2]
[334453274,1723113045921,-577.005933,0.00011186,2]
[334453275,1723113045933,-577.005933,0.00011186,2]
[334453276,1723113045942,-151.0,0.00011186,2]
[334453277,1723113045952,-157.349216,0.00011186,2]
[334453278,1723113045962,-157.349216,0.00011186,2]
[334453279,1723113045971,-151.0,0.00011186,2]
[334453280,1723113045981,-151.0,0.00011186,2]
[334453281,1723113045991,-151.0,0.00011186,2]
[334453282,1723113046001,-368.671908,0.00011186,2]
[334453283,1723113046010,-151.0,0.00011186,2]
[334453284,1723113046019,-368.671908,0.00011186,2]
[334453285,1723113046029,-304.121302,0.00011186,2]
[334453286,1723113046038,-304.121302,0.00011186,2]
[334453287,1723113046048,-873.593595,0.00011186,2]
[334453288,1723113046057,-873.593595,0.00011186,2]
[334453289,1723113046067,-151.0,0.00011186,2]
[334453290,1723113046076,-182.595978,0.00011186,2]
[334453291,1723113046086,-151.0,0.00011186,2]
[334453292,1723113046096,-182.595978,0.00011186,2]
[334453293,1723113046107,-151.0,0.00011186,2]
[334453294,1723113046116,-1160.590552,0.00011186,2]
[334453295,1723113046125,-1160.590552,0.00011186,2]
[334453296,1723113046135,-444.959027,0.00011186,2]
[334453297,1723113046144,-444.959027,0.00011186,2]
[334453298,1723113046153,-151.0,0.00011186,2]
[334453299,1723113046163,-151.0,0.00011186,2]
[334453300,1723113046173,-151.0,0.00011186,2]
[334453301,1723113046184,-151.0,0.00011186,2]
[334453302,1723113046193,-151.0,0.00011186,2]
[334453303,1723113046203,-151.0,0.00011186,2]
[334453304,1723113046212,-151.0,0.00011186,2]
[334453305,1723113046222,-151.0,0.00011186,2]
[334453306,1723113046234,-151.0,0.00011186,2]
[334453307,1723113046243,-151.0,0.00011186,2]
[334453308,1723113046253,-151.0,0.00011186,2]
[334453309,1723113046263,-151.0,0.00011186,2]
[334453310,1723113046273,-151.0,0.00011186,2]
[334453311,1723113046283,-151.0,0.00011186,2]
[334453312,1723113046292,-151.0,0.00011186,2]
[334453313,1723113046301,-151.0,0.00011186,2]
[334453314,1723113046314,-151.0,0.00011186,2]
[334453315,1723113046324,-151.0,0.00011186,2]
[334453316,1723113046333,-151.0,0.00011186,2]
[334453317,1723113046343,-417.333619,0.00011186,2]
[334453318,1723113046352,-417.333619,0.00011186,2]
[334453319,1723113046361,-417.333619,0.00011186,2]
[334453320,1723113046371,-417.333619,0.00011186,2]
[334453321,1723113046380,-151.0,0.00011186,2]
[334453322,1723113046390,-151.0,0.00011186,2]
[334453323,1723113046399,-5260.001754,0.00011186,2]
[334453324,1723113046408,-5260.001754,0.00011186,2]
[334453325,1723113046417,-171.394083,0.00011186,2]